bitfinex/quotes_SOLUSD_20250904
["timestamp","ask_amount","ask_price","bid_price","bid_amount"]
[1756957939397,3.191748,208.29,208.26,4.80169019]
[1756957939627,3.881748,208.29,208.26,4.80169019]
[1756957940406,3.881748,208.29,208.25,4.80192076]
[1756957940605,3.881748,208.28,208.25,4.80192076]
[1756957940808,3.191748,208.26,208.23,4.83215559]
[1756957941009,3.881748,208.26,208.23,4.83215559]
[1756957942114,3.191748,208.24,208.23,0.03]
[1756957942522,3.881748,208.24,208.23,0.03]
[1756957948530,0.69,208.24,208.23,0.03]
[1756957948729,3.881748,208.24,208.23,0.03]
[1756957948923,3.821748,208.24,208.23,0.03]
[1756957949736,8.6547733,208.24,208.23,0.03]
[1756957950032,3.821748,208.24,208.23,0.03]
[1756957950236,0.63,208.24,208.23,0.03]
[1756957950531,3.821748,208.24,208.23,0.03]
[1756957950732,4.80280463,208.25,208.23,0.03]
[1756957951041,7.99455263,208.28,208.23,3.911748]
[1756957951211,7.99455263,208.28,208.24,0.69]
[1756957951417,3.191748,208.28,208.25,4.80192076]
[1756957951735,8.78434155,208.29,208.25,4.80192076]
[1756957952212,3.191748,208.28,208.25,4.80192076]
[1756957952412,3.191748,208.28,208.25,5.49192076]
[1756957953636,3.191748,208.28,208.25,4.80192076]
[1756957954739,0.69,208.27,208.25,4.80192076]
[1756957954941,3.881748,208.28,208.25,4.80192076]
[1756957955422,4.90259355,208.29,208.25,4.80192076]
[1756957955423,8.09434155,208.29,208.25,4.80192076]
[1756957955621,3.191748,208.29,208.25,0.69]
[1756957956037,37.4,208.32,208.26,3.881748]
[1756957956038,4.80192076,208.3,208.26,3.881748]
[1756957956238,3.881748,208.32,208.27,0.69]
[1756957956539,14.43036148,208.33,208.28,3.881748]
[1756957956738,3.881748,208.34,208.29,0.69]
[1756957956920,37.4,208.36,208.27,3.47607114]
[1756957956921,3.881748,208.33,208.27,3.47607114]
[1756957957121,3.881748,208.33,208.28,0.69]
[1756957958235,3.881748,208.33,208.29,4.8009986]
[1756957958427,0.69,208.32,208.29,4.8009986]
[1756957959822,3.191748,208.33,208.29,4.8009986]
[1756957960030,3.881748,208.33,208.29,4.8009986]
[1756957960229,0.69,208.33,208.29,4.8009986]
[1756957960423,3.881748,208.33,208.29,4.8009986]
[1756957960941,63.46,208.38,208.29,5.4909986]
[1756957961126,3.881748,208.33,208.29,5.4909986]
[1756957964045,26.06,208.38,208.3,1.00432314]
[1756957964229,3.191748,208.36,208.31,0.72]
[1756957964545,3.891748,208.36,208.31,0.72]
[1756957964719,0.7,208.35,208.31,0.72]
[1756957965348,3.891748,208.35,208.32,4.80030721]
[1756957967670,0.7,208.35,208.32,4.80030721]
[1756957967824,3.891748,208.35,208.32,4.80030721]
[1756957969057,0.7,208.35,208.32,4.80030721]
[1756957969358,3.891748,208.35,208.32,4.80030721]
[1756957969651,0.7,208.35,208.31,4.80053766]
[1756957969833,3.891748,208.35,208.31,5.52053766]
[1756957970032,0.7,208.35,208.31,5.52053766]
[1756957970349,26.06,208.38,208.31,5.52053766]
[1756957970652,3.891748,208.35,208.31,5.52053766]
[1756957971052,0.7,208.37,208.32,4.19607114]
[1756957971233,0.7,208.37,208.33,0.72]
[1756957971835,29.251748,208.38,208.35,0.28432314]
[1756957971836,0.06,208.38,208.35,0.28432314]
[1756957972240,0.06,208.38,208.37,3.191748]
[1756957972447,0.06,208.38,208.36,3.911748]
[1756957972649,0.06,208.38,208.37,0.72]
[1756957973050,0.06,208.38,208.36,0.72]
[1756957973532,0.06,208.38,208.37,4.79915534]
[1756957976259,0.06,208.41,208.37,55.30352842]
[1756957976441,0.06,208.41,208.4,0.28432314]
[1756957978367,0.06,208.41,208.4,5.08278763]
[1756957979838,0.06,208.41,208.4,10.06049539]
[1756957980034,0.06,208.41,208.4,10.78049539]
[1756957980234,0.06,208.41,208.4,24.51825097]
[1756957980638,0.06,208.41,208.4,24.3760894]
[1756957980835,0.06,208.41,208.4,24.51825097]
[1756957981660,0.06,208.43,208.41,0.14216157]
[1756957981841,0.06,208.43,208.42,19.43546334]
[1756957982248,0.06,208.43,208.42,24.23346737]
[1756957986242,1e-08,208.43,208.42,25.09355099]
[1756957986860,1e-08,208.43,208.42,27.01574999]
[1756957987849,1e-08,208.44,208.43,14.02207872]
[1756957988069,1e-08,208.44,208.43,24.51756031]
[1756957988972,1e-08,208.44,208.43,51.21991715]
[1756957988973,0.70000001,208.44,208.43,51.21991715]
[1756957989153,0.70000001,208.44,208.43,37.34]
[1756957989386,0.70000001,208.44,208.43,37.62432314]
[1756957989666,0.70000001,208.44,208.43,37.34]
[1756957989855,1e-08,208.44,208.43,37.34]
[1756957990069,1e-08,208.44,208.43,37.62432314]
[1756957990254,1e-08,208.44,208.43,42.42209697]
[1756957993660,1e-08,208.44,208.43,60.99539874]
[1756957994748,1e-08,208.44,208.43,61.84756031]
[1756957995473,1e-08,208.44,208.43,56.86985255]
[1756957995661,1e-08,208.44,208.43,61.84756031]
[1756957995880,1e-08,208.44,208.43,18.81985255]
[1756957996047,1e-08,208.44,208.43,61.11756031]
[1756957997390,1e-08,208.44,208.43,61.82756031]
[1756957999275,1e-08,208.44,208.43,61.11756031]
[1756957999580,1e-08,208.44,208.43,61.82756031]
[1756958000161,1e-08,208.44,208.43,61.11756031]
[1756958001267,1e-08,208.44,208.43,56.84985255]
[1756958001471,1e-08,208.44,208.43,61.82756031]
[1756958003982,5.67770777,208.44,208.41,0.03]
[1756958004160,4.97770776,208.42,208.41,0.03]
[1756958004570,5.67770776,208.42,208.41,0.03]
[1756958004958,0.7,208.42,208.41,0.03]
[1756958006667,5.67770776,208.42,208.41,0.03]
[1756958007371,0.7,208.42,208.41,0.03]
[1756958007589,5.67770776,208.42,208.41,0.03]
[1756958007969,0.7,208.42,208.41,0.03]
[1756958008489,5.67770776,208.42,208.41,0.03]
[1756958009290,0.65809439,208.42,208.41,0.03]
[1756958009995,5.63580215,208.42,208.41,0.03]
[1756958011680,0.65809439,208.42,208.41,0.03]
[1756958011883,5.63580215,208.42,208.41,0.03]
[1756958017494,5.69580215,208.42,208.41,0.03]
[1756958018584,0.06,208.42,208.41,0.03]
[1756958018807,0.06,208.42,208.41,0.74]
[1756958019914,0.06,208.42,208.41,5.82255738]
[1756958020690,0.06,208.42,208.41,5.11255738]
[1756958021905,5.03770776,208.42,208.41,5.11255738]
[1756958024625,5.73770776,208.42,208.41,5.11255738]
[1756958024805,5.73770776,208.42,208.41,0.31432314]
[1756958025317,5.73770776,208.42,208.41,0.03]
[1756958034450,0.06,208.42,208.41,0.03]
[1756958034722,0.06,208.42,208.41,0.73]
[1756958034923,0.06,208.42,208.41,5.52823424]
[1756958035130,0.06,208.42,208.41,5.81255738]
[1756958035306,0.06,208.42,208.41,5.11255738]
[1756958035710,5.03770776,208.42,208.41,5.11255738]
[1756958035912,5.03770776,208.42,208.41,4.82823424]
[1756958037033,5.03770776,208.42,208.41,0.31432314]
[1756958037212,0.06,208.42,208.41,1.01432314]
[1756958037408,0.06,208.42,208.41,0.31432314]
[1756958037609,0.06,208.42,208.41,1.01432314]
[1756958037822,0.06,208.42,208.41,0.31432314]
[1756958038532,0.06,208.42,208.41,5.81255738]
[1756958038911,0.06,208.42,208.41,5.11255738]
[1756958040426,5.03770776,208.42,208.41,5.11255738]
[1756958041535,3.24642601,208.42,208.41,5.11255738]
[1756958045827,3.94642601,208.42,208.41,0.03]
[1756958050517,29.94642601,208.42,208.41,0.03]
[1756958050834,34.74443004,208.42,208.38,0.03]
[1756958051020,3.18642601,208.39,208.38,0.03]
[1756958051526,3.88642601,208.39,208.38,0.03]
[1756958053236,8.68512076,208.39,208.38,0.03]
[1756958053743,15.40894662,208.39,208.38,0.03]
[1756958055138,26.14216157,208.37,208.26,4.80076812]
[1756958055444,41.93213005,208.37,208.27,4.80145964]
[1756958055745,0.68,208.36,208.27,5.48145964]
[1756958055934,3.18642601,208.3,208.27,4.80145964]
[1756958056136,3.18642601,208.3,208.28,0.68]
[1756958056836,3.18642601,208.3,208.29,5.4809986]
[1756958057550,3.18642601,208.3,208.29,4.8009986]
[1756958058855,3.18642601,208.3,208.28,4.80122911]
[1756958059048,3.18642601,208.32,208.29,0.96432314]
[1756958059349,3.18642601,208.33,208.3,0.68]
[1756958059938,4.80145964,208.38,208.31,0.68]
[1756958060133,3.18642601,208.33,208.31,0.68]
[1756958060548,3.18642601,208.33,208.29,14.55991715]
[1756958060856,3.18642601,208.32,208.29,14.55991715]
[1756958061030,3.18642601,208.32,208.3,4.80076812]
[1756958061342,3.18642601,208.32,208.3,5.48076812]
[1756958062351,0.68,208.36,208.31,0.68]
[1756958062532,3.18642601,208.33,208.31,0.68]
[1756958063231,3.86642601,208.32,208.28,4.80106162]
[1756958063430,3.18642601,208.29,208.28,4.80106162]
[1756958064351,3.86642601,208.29,208.27,4.80145964]
[1756958064542,3.86642601,208.28,208.25,4.80192076]
[1756958064847,3.18642601,208.28,208.25,5.48192076]
[1756958068034,3.18642601,208.28,208.25,4.80192076]
[1756958068357,4.80106162,208.33,208.25,5.0862439]
[1756958068358,3.18642601,208.26,208.25,5.0862439]
[1756958068960,3.18642601,208.26,208.25,4.83192076]
[1756958069133,3.18642601,208.26,208.25,0.03]
[1756958069534,3.86642601,208.26,208.25,0.03]
[1756958070045,3.18642601,208.26,208.25,0.03]
[1756958070455,3.86642601,208.26,208.25,0.03]
[1756958071036,3.18642601,208.26,208.25,0.03]
[1756958073959,3.86642601,208.26,208.25,0.03]
[1756958074139,3.18642601,208.26,208.25,0.03]
[1756958074476,3.86642601,208.26,208.25,0.03]
[1756958074835,3.18642601,208.26,208.25,0.03]
[1756958075255,3.18642601,208.27,208.25,0.03]
[1756958075771,3.86642601,208.27,208.25,0.03]
[1756958077255,3.86642601,208.26,208.25,0.03]
[1756958082159,0.68,208.26,208.25,0.03]
[1756958082361,3.18642601,208.26,208.25,0.03]
[1756958083365,0.68,208.28,208.25,0.03]
[1756958083568,3.18642601,208.26,208.25,0.03]
[1756958084042,0.68,208.27,208.25,0.03]
[1756958084241,3.18642601,208.26,208.25,0.03]
[1756958084847,3.86642601,208.26,208.25,0.03]
[1756958085954,3.18642601,208.26,208.25,0.03]
[1756958087766,0.68,208.27,208.25,0.03]
[1756958088162,3.18642601,208.26,208.25,0.03]
[1756958089063,3.86642601,208.26,208.25,0.03]
[1756958094172,3.86642601,208.26,208.18,4.8035354]
[1756958094492,3.18642601,208.2,208.18,4.8035354]
[1756958095656,3.18642601,208.2,208.17,14.56297488]
[1756958096365,0.68,208.2,208.17,4.80376615]
[1756958096568,3.18642601,208.18,208.17,4.80376615]
[1756958096768,3.18642601,208.19,208.17,4.80376615]
[1756958097366,0.68,208.2,208.15,5.08855086]
[1756958097566,0.68,208.26,208.18,13.59559401]
[1756958097764,3.18642601,208.22,208.19,0.28432314]
[1756958097957,3.18642601,208.23,208.19,0.28432314]
[1756958098279,3.18642601,208.25,208.2,0.68]
[1756958099273,3.18642601,208.22,208.17,12.0092673]
[1756958099485,3.18642601,208.23,208.18,13.87991715]
[1756958099778,3.18642601,208.23,208.18,14.55991715]
[1756958100165,3.18642601,208.23,208.18,19.36345255]
[1756958100367,3.86642601,208.23,208.18,19.36345255]
[1756958100968,3.18642601,208.23,208.19,0.68]
[1756958101283,3.86642601,208.23,208.18,18.68345255]
[1756958101482,4.9875615,208.24,208.19,0.96432314]
[1756958102376,4.9875615,208.24,208.2,4.80307396]
[1756958102693,5.6675615,208.23,208.2,4.80307396]
[1756958103770,4.9875615,208.23,208.2,4.80307396]
[1756958104385,5.6675615,208.23,208.2,4.80307396]
[1756958104557,0.68,208.23,208.2,4.80307396]
[1756958105583,5.6675615,208.22,208.19,0.28432314]
[1756958105883,0.68,208.21,208.17,0.03]
[1756958106077,5.6675615,208.21,208.17,0.03]
[1756958106262,0.68,208.2,208.17,0.03]
[1756958106462,0.68,208.2,208.17,4.83370827]
[1756958107879,5.6675615,208.22,208.17,4.83370827]
[1756958108067,0.68,208.21,208.17,4.83370827]
[1756958108267,0.68,208.2,208.17,4.83370827]
[1756958108782,0.68,208.19,208.17,4.83370827]
[1756958108985,0.68,208.18,208.17,0.03]
[1756958109873,0.68,208.2,208.17,0.03]
[1756958110288,0.68,208.19,208.17,0.03]
[1756958111899,5.6675615,208.23,208.18,0.68]
[1756958112288,5.6675615,208.23,208.17,5.30188464]
[1756958112590,5.6575615,208.22,208.17,0.31432314]
[1756958112789,4.9875615,208.21,208.17,0.03]
[1756958113175,0.67,208.2,208.17,0.03]
[1756958114711,0.06,208.24,208.19,4.9875615]
[1756958114876,0.06,208.24,208.21,4.9875615]
[1756958114877,0.73,208.24,208.21,4.9875615]
[1756958115596,0.06,208.24,208.2,5.27188464]
[1756958115891,0.73,208.24,208.2,5.27188464]
[1756958116094,0.67,208.23,208.21,4.80284328]
[1756958116407,0.67,208.22,208.21,4.80284328]
[1756958118579,0.06,208.24,208.21,4.80284328]
[1756958118775,0.73,208.24,208.21,4.80284328]
[1756958119592,0.06,208.24,208.22,5.6875615]
[1756958120674,0.06,208.24,208.23,4.80238198]
[1756958121392,0.73,208.24,208.23,4.80238198]
[1756958122793,0.73,208.24,208.22,4.80261262]
[1756958123276,0.06,208.24,208.22,4.80261262]
[1756958125403,0.06,208.24,208.22,9.79017412]
[1756958127189,0.06,208.24,208.22,4.80261262]
[1756958130406,0.06,208.24,208.22,9.79017412]
[1756958130805,0.06,208.24,208.22,4.80261262]
[1756958131003,0.67,208.23,208.22,4.80261262]
[1756958131200,0.06,208.24,208.22,4.80261262]
[1756958131709,0.73,208.24,208.22,4.80261262]
[1756958132413,0.67,208.23,208.2,5.08736397]
[1756958132706,5.0475615,208.24,208.2,4.80304083]
[1756958132707,0.67,208.22,208.2,4.80304083]
[1756958133401,5.0475615,208.24,208.2,4.80304083]
[1756958133609,5.7175615,208.24,208.2,4.80304083]
[1756958133789,0.67,208.23,208.2,4.80304083]
[1756958136200,0.67,208.22,208.2,4.80304083]
[1756958137708,0.67,208.23,208.2,4.80304083]
[1756958139011,0.67,208.23,208.2,9.79060233]
[1756958141311,0.67,208.23,208.2,4.80304083]
[1756958146312,0.06,208.24,208.21,0.69]
[1756958146525,0.73,208.24,208.21,0.69]
[1756958146696,0.73,208.24,208.2,5.49304083]
[1756958147037,0.06,208.24,208.21,5.6775615]
[1756958147194,0.06,208.24,208.22,0.69]
[1756958147516,0.06,208.24,208.2,0.28432314]
[1756958147705,0.67,208.23,208.2,0.28432314]
[1756958147901,0.06,208.24,208.2,5.96188464]
[1756958148114,0.73,208.24,208.2,5.96188464]
[1756958148510,0.73,208.24,208.2,10.7648725]
[1756958148829,0.06,208.24,208.21,0.69]
[1756958148989,0.06,208.24,208.22,0.69]
[1756958150221,0.06,208.24,208.23,4.80238198]
[1756958150716,0.06,208.24,208.22,4.80258228]
[1756958153228,0.73,208.24,208.22,4.80258228]
[1756958153743,0.67,208.23,208.2,5.08719297]
[1756958153932,5.6575615,208.23,208.2,42.34719297]
[1756958154133,0.67,208.23,208.2,42.34719297]
[1756958157429,0.67,208.22,208.19,42.06328204]
[1756958157632,0.67,208.21,208.19,42.06328204]
[1756958158010,0.67,208.22,208.19,42.06328204]
[1756958158535,0.06,208.24,208.19,42.06328204]
[1756958158732,5.6575615,208.23,208.19,42.75328204]
[1756958159244,5.6575615,208.23,208.19,5.49328204]
[1756958160840,4.9875615,208.23,208.19,5.49328204]
[1756958161021,0.67,208.22,208.19,5.49328204]
[1756958161510,3.86307673,208.21,208.18,37.40216157]
[1756958162131,0.67,208.21,208.18,37.40216157]
[1756958162817,0.67,208.22,208.18,38.09216157]
[1756958163019,0.67,208.22,208.18,37.40216157]
[1756958163235,0.67,208.21,208.18,37.40216157]
[1756958163429,3.86307673,208.23,208.18,42.89567208]
[1756958163723,0.67,208.22,208.18,0.69]
[1756958163930,0.67,208.22,208.18,5.49343381]
[1756958168533,3.19307673,208.23,208.18,4.80343381]
[1756958168835,0.67,208.22,208.18,5.49343381]
[1756958169336,0.67,208.21,208.18,4.80343381]
[1756958169925,0.67,208.23,208.18,5.49343381]
[1756958170133,3.86307673,208.22,208.18,5.49343381]
[1756958171443,3.19307673,208.22,208.19,0.69]
[1756958171845,0.67,208.21,208.18,4.80343381]
[1756958173019,3.88307673,208.2,208.17,0.03]
[1756958173953,3.19307673,208.19,208.17,0.03]
[1756958174163,3.88307673,208.2,208.17,0.03]
[1756958174465,0.69,208.19,208.17,0.03]
[1756958175148,3.19307673,208.2,208.17,0.03]
[1756958175354,29.88307673,208.21,208.17,0.69]
[1756958176246,0.69,208.2,208.17,0.03]
[1756958180361,30.86379405,208.24,208.19,3.19307673]
[1756958180362,0.69,208.23,208.19,3.19307673]
[1756958180659,0.69,208.23,208.2,3.19307673]
[1756958181658,0.69,208.23,208.21,4.80284328]
[1756958184052,0.06,208.24,208.2,4.80307396]
[1756958184252,0.75,208.24,208.2,5.46307396]
[1756958184578,0.69,208.23,208.2,5.46307396]
[1756958184964,0.69,208.23,208.2,8.65615069]
[1756958185153,0.69,208.23,208.2,7.99615069]
[1756958187465,0.69,208.23,208.2,4.80307396]
[1756958189070,0.69,208.23,208.2,8.65615069]
[1756958190279,0.06,208.24,208.22,3.19307673]
[1756958190571,0.06,208.24,208.23,3.47739987]
[1756958190756,0.06,208.24,208.23,4.13739987]
[1756958191371,0.06,208.24,208.23,17.73299388]
[1756958191563,0.06,208.24,208.23,22.53537586]
[1756958192778,0.06,208.24,208.23,22.67753743]
[1756958193474,1e-08,208.24,208.23,22.67753743]
[1756958193973,1e-08,208.24,208.23,59.89753743]
[1756958194372,1e-08,208.24,208.23,61.82149308]
[1756958195584,1e-08,208.24,208.23,24.60149308]
[1756958195776,1e-08,208.24,208.23,59.89753743]
[1756958199477,1e-08,208.24,208.23,22.67753743]
[1756958199782,1e-08,208.24,208.23,59.21753743]
[1756958200081,1e-08,208.24,208.23,23.94167818]
[1756958200375,0.69000001,208.24,208.23,59.07537586]
[1756958200675,1e-08,208.24,208.23,55.88229913]
[1756958200869,1e-08,208.24,208.23,59.07537586]
[1756958201787,1e-08,208.24,208.23,59.87753743]
[1756958202076,1e-08,208.24,208.23,61.80158563]
[1756958202482,1e-08,208.24,208.23,58.6085089]
[1756958202687,1e-08,208.24,208.23,61.80158563]
[1756958202860,1e-08,208.24,208.23,61.14158563]
[1756958203056,1e-08,208.24,208.23,61.86158563]
[1756958204364,1e-08,208.24,208.23,61.14158563]
[1756958204794,0.70000001,208.24,208.23,6.72643018]
[1756958204971,0.70000001,208.24,208.23,42.00238198]
[1756958205164,1e-08,208.24,208.23,42.00238198]
[1756958205990,1e-08,208.24,208.23,58.93321429]
[1756958206278,1e-08,208.24,208.23,59.21753743]
[1756958207874,1e-08,208.24,208.23,56.0244607]
[1756958208080,1e-08,208.24,208.23,59.93753743]
[1756958208279,1e-08,208.24,208.23,56.0244607]
[1756958208480,1e-08,208.24,208.23,59.21753743]
[1756958209186,1e-08,208.24,208.23,59.93753743]
[1756958211569,1e-08,208.24,208.23,61.86158563]
[1756958212484,1e-08,208.24,208.23,58.6685089]
[1756958212685,1e-08,208.24,208.23,61.86158563]
[1756958213399,1e-08,208.24,208.23,58.6685089]
[1756958213598,1e-08,208.24,208.23,61.86158563]
[1756958213895,1e-08,208.26,208.25,17.21515545]
[1756958214074,1e-08,208.26,208.25,56.00399948]
[1756958214272,1e-08,208.26,208.25,59.19707621]
[1756958214477,1e-08,208.26,208.25,61.12075429]
[1756958215779,1e-08,208.26,208.25,57.92767756]
[1756958216078,1e-08,208.26,208.25,61.12075429]
[1756958216281,1e-08,208.26,208.25,61.84075429]
[1756958216877,1e-08,208.26,208.25,140.44075429]
[1756958217082,1e-08,208.26,208.25,139.72075429]
[1756958217388,0.06,208.29,208.26,14.02207872]
[1756958217578,0.06,208.29,208.28,3.61956144]
[1756958217784,0.06,208.29,208.28,17.21515545]
[1756958217996,0.06,208.29,208.28,21.18823218]
[1756958218301,0.06,208.29,208.28,25.98946129]
[1756958218497,0.7,208.33,208.28,37.99253407]
[1756958218680,3.25307673,208.36,208.32,0.28432314]
[1756958219002,3.25307673,208.36,208.33,37.18]
[1756958219403,0.7,208.35,208.33,37.18]
[1756958219701,0.7,208.34,208.33,37.18]
[1756958220308,0.7,208.34,208.33,4.8000768]
[1756958225098,0.7,208.34,208.32,5.08458066]
[1756958225299,0.7,208.33,208.29,28.02179198]
[1756958225607,0.7,208.32,208.3,37.46432314]
[1756958225803,0.7,208.31,208.3,51.05991715]
[1756958226313,0.7,208.31,208.3,18.68068527]
[1756958226501,0.7,208.31,208.3,4.80076812]
[1756958226705,5.68248351,208.31,208.29,37.16]
[1756958226900,5.68248351,208.31,208.25,16.98716648]
[1756958226901,5.68248351,208.3,208.26,41.96167264]
[1756958227098,5.68248351,208.29,208.26,41.96167264]
[1756958227305,0.7,208.28,208.26,41.96167264]
[1756958228003,0.7,208.27,208.26,41.96167264]
[1756958230011,4.98248351,208.3,208.26,41.96167264]
[1756958230313,0.7,208.29,208.26,41.96167264]
[1756958230498,0.7,208.28,208.26,41.96167264]
[1756958232618,0.67,208.27,208.26,37.16]
[1756958232921,0.67,208.27,208.25,37.16]
[1756958233322,0.67,208.26,208.25,37.16]
[1756958233621,0.67,208.28,208.26,4.80169019]
[1756958233997,0.67,208.28,208.27,37.16]
[1756958235126,0.67,208.28,208.27,41.96145964]
[1756958235823,0.67,208.28,208.25,4.80192076]
[1756958236021,0.67,208.27,208.26,37.16]
[1756958236218,0.67,208.27,208.25,41.96192076]
[1756958236421,0.67,208.26,208.25,41.96192076]
[1756958236626,4.98248351,208.31,208.25,41.96192076]
[1756958236924,0.67,208.26,208.25,4.80192076]
[1756958240232,0.67,208.26,208.24,37.16]
[1756958240233,0.67,208.26,208.24,41.9621417]
[1756958240412,0.67,208.25,208.24,41.9621417]
[1756958241822,0.67,208.25,208.24,4.8021417]
[1756958243113,0.67,208.25,208.24,4.8321417]
[1756958244215,0.73,208.29,208.24,10.50462521]
[1756958244528,0.67,208.28,208.25,42.14248351]
[1756958245226,0.67,208.28,208.26,4.80169019]
[1756958247928,5.65248351,208.27,208.25,4.8018801]
[1756958248228,0.67,208.26,208.25,41.9618801]
[1756958248620,0.67,208.26,208.25,37.16]
[1756958249513,0.67,208.26,208.24,4.83198031]
[1756958249719,0.67,208.25,208.24,4.83198031]
[1756958250932,0.67,208.27,208.24,4.83198031]
[1756958251233,0.67,208.26,208.24,4.83198031]
[1756958253728,0.67,208.28,208.24,4.83198031]
[1756958254031,0.06,208.29,208.24,9.81446382]
[1756958254229,0.73,208.29,208.25,42.83248351]
[1756958254409,10.81496702,208.29,208.25,42.83248351]
[1756958254610,0.73,208.29,208.25,42.83248351]
[1756958255215,0.73,208.29,208.26,4.80169019]
[1756958255537,0.67,208.28,208.26,4.80169019]
[1756958255725,0.67,208.27,208.26,4.80169019]
[1756958256619,0.67,208.27,208.25,41.96186741]
[1756958257929,0.06,208.29,208.25,41.96186741]
[1756958258123,0.06,208.29,208.26,0.69]
[1756958258324,0.06,208.29,208.27,0.69]
[1756958258721,0.06,208.29,208.27,37.14]
[1756958258913,0.06,208.29,208.28,5.95680665]
[1756958260131,0.06,208.29,208.28,10.75803576]
[1756958260440,0.06,208.29,208.28,24.35362977]
[1756958261345,0.06,208.32,208.29,13.87991715]
[1756958261529,0.06,208.32,208.31,5.26680665]
[1756958262032,0.06,208.32,208.31,5.95680665]
[1756958262418,0.06,208.32,208.31,10.75734431]
[1756958265722,0.06,208.32,208.31,24.49509989]
[1756958266641,1e-08,208.32,208.31,24.49509989]
[1756958266824,1e-08,208.34,208.33,0.14216157]
[1756958267025,1e-08,208.34,208.33,43.23896822]
[1756958267324,1e-08,208.34,208.33,56.83456223]
[1756958267520,1e-08,208.34,208.33,53.77510941]
[1756958267714,1e-08,208.34,208.33,58.75759292]
[1756958268732,1e-08,208.34,208.33,63.55766972]
[1756958270319,1e-08,208.34,208.33,58.57518621]
[1756958270525,1e-08,208.34,208.33,63.55766972]
[1756958272352,1e-08,208.34,208.33,58.57518621]
[1756958272556,1e-08,208.34,208.33,63.55766972]
[1756958273345,1e-08,208.36,208.35,39.87991715]
[1756958273648,1e-08,208.36,208.35,81.98240066]
[1756958273827,1e-08,208.36,208.35,82.67240066]
[1756958274134,1e-08,208.36,208.35,84.59524647]
[1756958279156,1e-08,208.36,208.35,89.3948625]
[1756958279653,1e-08,208.36,208.35,84.41237899]
[1756958279846,1e-08,208.36,208.35,89.3948625]
[1756958280236,0.66000001,208.36,208.35,23.37769355]
[1756958280440,0.66000001,208.36,208.35,55.49521004]
[1756958281052,0.66000001,208.36,208.35,55.77953318]
[1756958281254,0.66000001,208.36,208.35,60.76201669]
[1756958282547,0.66000001,208.36,208.35,9.78209954]
[1756958282737,0.66000001,208.36,208.35,41.89961603]
[1756958284649,1e-08,208.36,208.35,60.76201669]
[1756958285255,0.66000001,208.36,208.35,60.76201669]
[1756958285438,0.66000001,208.36,208.35,58.96678239]
[1756958285870,0.66000001,208.36,208.35,41.89961603]
[1756958289266,0.66000001,208.36,208.35,4.79961603]
[1756958289558,1e-08,208.36,208.35,58.96678239]
[1756958290145,1e-08,208.36,208.35,59.65678239]
[1756958291956,1e-08,208.36,208.35,59.79894396]
[1756958292268,1e-08,208.36,208.35,61.72188221]
[1756958297468,1e-08,208.36,208.35,58.564633]
[1756958297647,1e-08,208.36,208.35,61.75188221]
[1756958299872,1e-08,208.36,208.35,140.35188221]
[1756958307370,1e-08,208.39,208.38,39.59559401]
[1756958307576,1e-08,208.39,208.38,80.14716636]
[1756958308077,1e-08,208.39,208.38,82.06973492]
[1756958309356,1e-08,208.39,208.38,86.86865996]
[1756958310966,1e-08,208.39,208.38,166.27082153]
[1756958311478,1e-08,208.39,208.38,165.61082153]
[1756958312195,0.67000001,208.39,208.38,98.91708761]
[1756958312379,0.67000001,208.39,208.38,134.07451905]
[1756958312565,0.67000001,208.39,208.38,134.05451905]
[1756958313076,0.67000001,208.39,208.38,134.33884219]
[1756958314379,0.67000001,208.39,208.36,4.79938567]
[1756958314674,0.67,208.38,208.37,37.06]
[1756958315470,0.67,208.38,208.37,37.34432314]
[1756958315871,0.67,208.38,208.37,42.14347848]